Cogmind - Beta 13 @@@ ROGUE MODE // 2024.04.08 @ 17:11:40 Player: chexo4 Result: Destroyed by G-47 Trooper with Particle Gun Performance ------------- Evolutions (2) 1000 Regions Visited (5) 1000 Robots Destroyed (35) 175 Value Destroyed (718) 718 Prototype IDs (25) 500 Alien Tech Used (0) 0 Bonus (42) 42 TOTAL SCORE: 3435 Bonus ------- Follower Combat Kills 42 Cogmind --------- Core Integrity 0/550 Matter 300/300 Energy 100/100 System Corruption 1% Temperature Cool (9) Movement Core (50) Location -8/Materials Parts ------- > --- POWER (1) -------- (None) > --- PROPULSION (2) --- (None) > --- UTILITY (6) ------ (None) > --- WEAPON (2) ------- (None) > --- INVENTORY (5) ---- (None) Peak State ------------ > --- POWER ------------ (None) > --- PROPULSION ------- Compact Wheel Compact Wheel > --- UTILITY ---------- Large Storage Unit Large Battery Terrain Scanner Makeshift Terrain Scan Processor Makeshift Salvage Targeting Computer Makeshift System Shield > --- WEAPON ----------- Makeshift Shrapnel Gun Great Maul > --- INVENTORY -------- Army-in-a-Box Rocket Launcher Datajack Mining Laser Makeshift Hammer [Rating: 30] Favorites ----------- Power Light Ion Engine Engine Light Ion Engine Propulsion Compact Wheel Wheel Compact Wheel Utility Seismic Detector Device Seismic Detector Storage Large Storage Unit Processor Advanced Visual Processing Unit Hackware Makeshift System Shield Weapon Beamcaster Energy Gun Beamcaster Ballistic Gun Makeshift Shrapnel Gun Launcher Rocket Launcher Special Weapon Mining Laser Impact Weapon Makeshift Hammer Build | -11 -10 -10 -10 -9 -8 ------- Run | Yrd Mat Min Exi Min Mat Slots Evolved 4 | . . . . . 4 Power . | . . . . . . Propulsion . | . . . . . . Utility 4 | . . . . . 4 Weapon . | . . . . . . Parts Attached 38 | 8 5 5 2 3 15 Power 5 | 1 . 2 . 1 1 Engine 5 | 1 . 2 . 1 1 Core . | . . . . . . Reactor . | . . . . . . Propulsion 5 | 2 1 2 . . . Treads . | . . . . . . Leg . | . . . . . . Wheel 5 | 2 1 2 . . . Hover . | . . . . . . Flight . | . . . . . . Utility 15 | 2 2 . 1 1 9 Device 3 | 1 1 . . . 1 Storage 7 | 1 1 . 1 1 3 Processor 4 | . . . . . 4 Hackware 1 | . . . . . 1 Protection . | . . . . . . Artifact . | . . . . . . Weapon 13 | 3 2 1 1 1 5 Energy Gun 5 | 3 1 1 . . . Energy Cannon . | . . . . . . Ballistic Gun 2 | . . . 1 . 1 Ballistic Cannon . | . . . . . . Launcher 1 | . . . . . 1 Special Weapon 2 | . 1 . . 1 . Impact Weapon 3 | . . . . . 3 Slashing Weapon . | . . . . . . Piercing Weapon . | . . . . . . Special Melee Weapon . | . . . . . . Unidentified Prototypes . | . . . . . . Parts Lost 18 | . 4 . . 4 10 Power 4 | . 1 . . 2 1 Propulsion 4 | . 2 . . . 2 Utility 6 | . 1 . . 1 4 Weapon 4 | . . . . 1 3 Highest Loss Streak 7 | . 2 . . 2 7 To Critical Strikes . | . . . . . . Average Slot Usage (%) 87 | . 88 98 100 98 45 Engine 10 | . 14 14 14 13 . Wheel 22 | . 23 26 28 28 3 Device 11 | . 8 14 14 13 5 Storage 13 | . 14 14 14 14 9 Processor 1 | . . . . . 8 Hackware 1 | . . . . . 8 Energy Gun 15 | . 24 28 22 13 . Ballistic Gun 6 | . . . 5 13 1 Impact Weapon 1 | . . . . . 8 Naked Turns 19 | . . . . . 19 Heaviest Build 31 | 13 18 21 31 31 30 Greatest Support 32 | 32 32 32 32 32 32 Greatest Overweight (x) 9 | . 1 1 . . 9 Average Overweight (x) . | . . . . . 4 Largest Inventory Capacity 15 | 8 10 10 15 15 15 Average Capacity 13 | 7 9 10 13 15 14 Most Carried 15 | 7 8 8 15 15 14 Average Carried 10 | 4 7 6 9 14 8 Final Capacity 15 | 8 10 10 15 15 5 Final Carried 15 | 7 7 7 15 14 . Class Distribution -------------------- 70% | Scavenger-Mutant 25% | Mutant 4% | Derelict-Mutant Dominant Class ---------------- Mutant | -10/Materials Scavenger-Mutant | -10/Mines Scavenger-Mutant | -10/Exiles Scavenger-Mutant | -9/Mines Mutant | -8/Materials Resources | -11 -10 -10 -10 -9 -8 ----------- Run | Yrd Mat Min Exi Min Mat Matter Collected 651 | 280 20 60 . 74 217 Remotely . | . . . . . . Salvage Created 1209 | 137 110 231 . 85 646 Parts 58 | 12 6 8 . 4 28 Haulers Intercepted 2 | . . . . . 2 Recyclers Shooed 4 | . 1 2 . . 1 Parts Field Recycled . | . . . . . . Retrieved Matter . | . . . . . . Parts Self-Destructed . | . . . . . . Prevented . | . . . . . . Kills | -11 -10 -10 -10 -9 -8 ------- Run | Yrd Mat Min Exi Min Mat Combat Hostiles Destroyed 17 | . 2 3 . 2 10 Melee 3 | . . . . . 3 Guns 10 | . 2 3 . 2 3 AOE 3 | . . . . . 3 Classes Destroyed 11 | 2 2 1 . 1 5 Worker 1 | . . . . . 1 Builder 2 | . . . . . 2 Tunneler 5 | 4 . . . . 1 Hauler 2 | . . . . . 2 Recycler 6 | 1 . 2 . . 3 Watcher 2 | . 1 . . . 1 Swarmer 5 | . . 1 . . 4 Grunt 8 | . 2 2 . . 4 Brawler 1 | . . . . . 1 Sentry 2 | . . . . 2 . Hunter 1 | . . . . . 1 Best Kill Streak 6 | 4 3 3 . 2 6 Combat Bots Only 4 | . 2 2 . 2 4 Max Kills in Single Turn 2 | 1 1 1 . 1 2 Gunslinging . | . . . . . . Exploded 1 | . . . . . 1 Melee 1 | . . . . . 1 Uniques/NPCs Destroyed . | . . . . . . Combat | -11 -10 -10 -10 -9 -8 -------- Run | Yrd Mat Min Exi Min Mat Hostile Shots Fired 181 | . 28 9 . 18 126 Missed 48 | . 8 2 . 4 34 Damage Taken 2053 | . 232 81 . 443 1297 Core 751 | . 22 36 . 134 559 Absorbed by Shields . | . . . . . . Core Remaining (%) 61 | 100 . . . 23 . Volleys Fired 82 | 10 20 12 1 25 14 Largest 2 | 2 2 2 2 2 1 Hottest 175 | 100 100 125 99 175 33 Shots Fired 127 | 20 28 24 2 39 14 Gun 99 | 20 19 24 2 23 11 Cannon . | . . . . . . Launcher 3 | . . . . . 3 Special 25 | . 9 . . 16 . Kinetic 21 | . . . 1 9 11 Thermal 103 | 20 28 24 1 30 . Explosive 3 | . . . . . 3 Electromagnetic . | . . . . . . Robot Hit Streak 8 | 4 5 8 . 8 8 Robot Miss Streak 6 | 5 1 2 . 3 6 Penetration Max . | . . . . . . Secondary Targets 1 | . . . . 1 . Max Gunslinging Chain 1 | . . . . 1 . Shots Hit Robots 76 | 9 14 15 . 15 23 Core Hits 47 | 6 6 9 . 6 20 Critical Kills 1 | . . . . . 1 Critical Parts Destroyed 1 | . . . . . 1 Critical Strikes 7 | 1 1 1 . 2 2 Burn 5 | 1 1 1 . 2 . Smash 2 | . . . . . 2 Melee Attacks 18 | . . . . . 18 Impact 18 | . . . . . 18 Slashing . | . . . . . . Piercing . | . . . . . . Sneak Attacks 4 | . . . . . 4 Combat Hostiles . | . . . . . . Follow-up Attacks . | . . . . . . Damage Inflicted 2150 | 113 187 251 . 321 1278 Guns 1056 | 113 187 251 . 321 184 Cannons . | . . . . . . Explosions 333 | . . . . . 333 Melee 736 | . . . . . 736 Ramming 25 | . . . . . 25 Kinetic 358 | . . . . 174 184 Thermal 698 | 113 187 251 . 147 . Explosive 333 | . . . . . 333 Electromagnetic . | . . . . . . Impact 736 | . . . . . 736 Slashing . | . . . . . . Piercing . | . . . . . . Highest Corruption 12 | . . . . 12 1 Average Corruption 4 | . . . . 10 1 Corruption Purged . | . . . . . . Corruption Blocked . | . . . . . . Effects 3 | . . . . 3 . Message Errors 1 | . . . . 1 . Matter Fused 1 | . . . . 1 . Misfires 1 | . . . . 1 . Overload Shots . | . . . . . . Overflow Damage 363 | . . . . . 363 Projectiles . | . . . . . . Explosions 32 | . . . . . 32 Melee 331 | . . . . . 331 Knockbacks 4 | . . . . . 4 Impact 3 | . . . . . 3 Kinetic . | . . . . . . Secondary 1 | . . . . . 1 Self-Inflicted Damage 105 | . . . . . 105 Shots 3 | . . . . . 3 Rammed 7 | . . . . . 7 Targets Rammed 7 | . . . . . 7 Kicked . | . . . . . . Crushed . | . . . . . . Highest Temperature 434 | 96 434 270 39 237 5 Average Temperature 90 | 37 157 79 24 67 5 Received Heat Transfer 683 | . 150 54 . 83 396 Effects 5 | . 5 . . . . Shutdowns 2 | . 2 . . . . Energy Bleed 2 | . 2 . . . . Interference 1 | . 1 . . . . Siege Activations . | . . . . . . Robots Corrupted . | . . . . . . Combat Hostiles . | . . . . . . Parts Fried 2 | . . . . . 2 Impact Corruptions 11 | . . . . . 11 Robots Melted . | . . . . . . Combat Hostiles . | . . . . . . Parts Melted 6 | 3 2 1 . . . Heat Transferred 2072 | 407 629 629 . 407 . Parts Sabotaged . | . . . . . . Parts Stolen . | . . . . . . Parts Stripped . | . . . . . . Power Chain Reactions . | . . . . . . Alert | -11 -10 -10 -10 -9 -8 ------- Run | Yrd Mat Min Exi Min Mat Peak Influence 184 | 25 86 184 . 95 125 Initial 31 | . 16 31 . . . Average 39 | 11 50 89 . 19 44 Maximum Alert Level . | . . . . . . Low Security (%) 100 | 100 100 100 . 100 100 Level 1 . | . . . . . . Level 2 . | . . . . . . Level 3 . | . . . . . . Level 4 . | . . . . . . Level 5 . | . . . . . . High Security . | . . . . . . Max Security . | . . . . . . Squads Dispatched 5 | . 2 . . . 3 Investigation 2 | . 1 . . . 1 Extermination . | . . . . . . Reinforcement 3 | . 1 . . . 2 Assault . | . . . . . . Garrison . | . . . . . . Intercept . | . . . . . . Searches Triggered . | . . . . . . Construction Impeded . | . . . . . . Haulers Reinforced . | . . . . . . Active Scanning Responses . | . . . . . . Cargo Convoy Interrupts . | . . . . . . Stealth | -11 -10 -10 -10 -9 -8 --------- Run | Yrd Mat Min Exi Min Mat Distress Signals 1 | . . . . . 1 Communications Jammed . | . . . . . . Distress Signals . | . . . . . . Times Spotted 41 | . 8 6 . 7 20 Peak Tracking Total 5 | . 4 3 . 4 5 Tactical Retreats 3 | . 1 1 . 1 . Traps | -11 -10 -10 -10 -9 -8 ------- Run | Yrd Mat Min Exi Min Mat Traps Triggered . | . . . . . . Indirectly . | . . . . . . Trap Hack Attempts . | . . . . . . Triggered . | . . . . . . Disarmed . | . . . . . . Reprogrammed . | . . . . . . Reused . | . . . . . . Traps Extracted . | . . . . . . Installed . | . . . . . . Triggered . | . . . . . . Machines | -11 -10 -10 -10 -9 -8 ---------- Run | Yrd Mat Min Exi Min Mat Machines Disabled 2 | . . 1 . 1 . Max in Single Turn 1 | . . 1 . 1 . Machines Repaired . | . . . . . . Machines Dismantled . | . . . . . . Machines Sabotaged . | . . . . . . Overloaded Fab Kills . | . . . . . . Hacking | -11 -10 -10 -10 -9 -8 --------- Run | Yrd Mat Min Exi Min Mat Machines Accessed 8 | . 1 1 5 . 1 Terminals 3 | . 1 1 . . 1 Fabricators . | . . . . . . Repair Stations . | . . . . . . Recycling Units . | . . . . . . Scanalyzers . | . . . . . . Garrison Access . | . . . . . . Total Hacks 66 | . 4 2 50 . 10 Successful 58 | . 1 2 50 . 5 Failed 8 | . 3 . . . 5 Catastrophic 1 | . 1 . . . . Database Lockouts . | . . . . . . Manual 4 | . 2 1 1 . . Terminals 16 | . 4 2 . . 10 Fabricators . | . . . . . . Repair Stations . | . . . . . . Recycling Units . | . . . . . . Scanalyzers . | . . . . . . Garrison Access . | . . . . . . Terminal Hacks 58 | . 1 2 50 . 5 Record 50 | . . . 49 . 1 Prototype ID Bank 1 | . . . . . 1 Level Access Points 1 | . . 1 . . . Emergency Access Points 1 | . . . . . 1 Hauler Manifests 1 | . . . . . 1 Zone Layout 3 | . 1 1 . . 1 Derelict Proto ID Bank 1 | . . . 1 . . Fabricator Hacks . | . . . . . . Repair Station Hacks . | . . . . . . Recycling Unit Hacks . | . . . . . . Scanalyzer . | . . . . . . Garrison Access Hacks . | . . . . . . Unauthorized Hacks . | . . . . . . Terminals . | . . . . . . Fabricators . | . . . . . . Repair Stations . | . . . . . . Recycling Units . | . . . . . . Scanalyzers . | . . . . . . Garrison Access . | . . . . . . Data Cores Recovered . | . . . . . . Used . | . . . . . . Hacking Detections 2 | . 1 . . . 1 Full Trace Events 2 | . 1 . . . 1 Feedback Events 1 | . . . . . 1 Corruption 1 | . . . . . 1 Feedback Blocked . | . . . . . . Robot Schematics Acquired . | . . . . . . Robots Built . | . . . . . . Authchips . | . . . . . . Time . | . . . . . . Total Robot Build Rating . | . . . . . . Part Schematics Acquired . | . . . . . . Parts Built . | . . . . . . Authchips . | . . . . . . Time . | . . . . . . Total Part Build Rating . | . . . . . . Parts Repaired . | . . . . . . Time . | . . . . . . Parts Recycled . | . . . . . . Recycled Matter . | . . . . . . Retrieved Matter . | . . . . . . Retrieved Components . | . . . . . . Parts Scanalyzed . | . . . . . . Part Schematics Acquired . | . . . . . . Parts Damaged . | . . . . . . Bothacking | -11 -10 -10 -10 -9 -8 ------------ Run | Yrd Mat Min Exi Min Mat Used RIF Installer . | . . . . . . Robots Hacked . | . . . . . . Non-combat . | . . . . . . Combat . | . . . . . . Robot Hacks Applied . | . . . . . . Relay Couplers Released . | . . . . . . Fabnet Peak Effective % . | . . . . . . Robots Rewired 3 | . . . 3 . . Allies Hacked . | . . . . . . Hacks Repelled . | . . . . . . Allies | -11 -10 -10 -10 -9 -8 -------- Run | Yrd Mat Min Exi Min Mat Total Allies 5 | . . 2 3 . . Largest Group 3 | . . 2 3 2 . Highest-Rated Group 41 | . . 41 24 16 . Highest-Rated Ally 31 | . . 31 8 8 . Total Orders . | . . . . . . Ally Attacks 24 | . . 12 . 12 . Total Damage 303 | . . 187 . 116 . Kills 6 | . . 2 . 4 . Allies Corrupted . | . . . . . . Allies Melted . | . . . . . . Intel | -11 -10 -10 -10 -9 -8 ------- Run | Yrd Mat Min Exi Min Mat Robot Analysis Total . | . . . . . . Derelict Logs Recovered 3 | . . 2 . 1 . Drone Launches . | . . . . . . Drone Recoveries . | . . . . . . Exploration | -11 -10 -10 -10 -9 -8 ------------- Run | Yrd Mat Min Exi Min Mat Turns Passed 4427 | 137 163 565 1029 1599 934 Spaces Moved 2533 | 88 83 448 961 664 289 Core 203 | 5 . . . . 198 Treads . | . . . . . . Legs . | . . . . . . Wheels 2330 | 83 83 448 961 664 91 Hover . | . . . . . . Flight . | . . . . . . Fastest Speed 50 | 50 100 100 100 100 50 Average Speed 119 | 97 105 101 100 100 266 Slowest Speed 500 | 100 115 115 100 100 500 Overloaded Moves . | . . . . . . Propulsion Burnouts . | . . . . . . Robots Hopped . | . . . . . . Cave-ins Triggered 2 | . . . . 2 . Exploration Rate (%) 49 | 4 23 77 95 80 17 Regions Visited 5 Branch Regions 3 Pre-discovered Areas 2 | . . 1 1 . . Known Exits Taken . | . . . . . . Unknown Exits Taken 5 | 1 1 1 1 1 . Scrap Searched 2 | . . 1 . 1 . Spaces Dug 27 | . 8 . . 19 . Terrain Destroyed 39 | . 8 . . 20 11 Melee . | . . . . . . Projectile 28 | . 8 . . 20 . AOE 11 | . . . . . 11 Terrain Rammed . | . . . . . . Walls Destroyed . | . . . . . . Machines Disabled . | . . . . . . Actions | -11 -10 -10 -10 -9 -8 --------- Run | Yrd Mat Min Exi Min Mat Total 3725 | 119 111 535 1027 1529 404 Wait 958 | . . 65 17 835 41 Move 2528 | 87 82 447 960 663 289 Hop . | . . . . . . Pick Up 45 | 14 3 4 7 2 15 Fast Attach 6 | . . . . . 6 Attach 22 | 7 2 2 . 2 9 Detach . | . . . . . . Swap 10 | 1 3 3 2 1 . Drop 13 | . 1 2 4 1 5 Fire 82 | 10 20 12 1 25 14 Melee 18 | . . . . . 18 Ram 7 | . . . . . 7 Kick . | . . . . . . Crush . | . . . . . . Escape Stasis . | . . . . . . Rewire 36 | . . . 36 . . Trap . | . . . . . . Miscellaneous . | . . . . . . Route ------- -11/Scrapyard -10/Materials -10/Mines (discovered 3 exits: *Mat x2 / *Exi) -10/Exiles (discovered 2 exits: [*Min x2]) -9/Mines -8/Materials History --------- Turn | Location | Event 2 | -11/Scrapyard | Met Revision 17 12 | -11/Scrapyard | Discovered new exit (range 16) 138 | -11/Scrapyard | Entered Materials 287 | -10/Materials | Discovered new exit (range 14) 301 | -10/Materials | Entered Mines 322 | -10/Mines | Build established: Mutant 506 | -10/Mines | Learned Materials emergency access door positions 585 | -10/Mines | Discovered new exit (range 4) 644 | -10/Mines | Build established: Scavenger-Mutant 653 | -10/Mines | Identified exit to Materials 831 | -10/Mines | Learned location of Storage (-9) 862 | -10/Mines | Deemed a non-threat by the Exiles lab entrance 862 | -10/Mines | Discovered new exit (range 5) 866 | -10/Mines | Entered Exiles 866 | -10/Exiles | Found Exiles lab destroyed 979 | -10/Exiles | Learned location of Zion (-7) 1081 | -10/Exiles | Opened EX-Vault 1257 | -10/Exiles | Discovered new exit (range 14) 1661 | -10/Exiles | Discovered new exit (range 15) 1776 | -10/Exiles | Found Army-in-a-Box 1895 | -10/Exiles | Entered Mines 1895 | -9/Mines | Accompanied by 3 allies 2073 | -9/Mines | Received a Rocket Launcher from a helpful Derelict 2190 | -9/Mines | Core integrity fell below 50% 2301 | -9/Mines | Discovered new exit (range 16) 2442 | -9/Mines | Assembled infested the area 3432 | -9/Mines | Crushed by falling debris 3432 | -9/Mines | System corruption reached 10% 3470 | -9/Mines | Crushed by falling debris 3494 | -9/Mines | Entered Materials 3494 | -8/Materials | Evolved 4 slots: Utility x4 3739 | -8/Materials | Lost 7 parts (2n3u2w) 3981 | -8/Materials | Build established: Mutant 4095 | -8/Materials | Lost 3 parts (1p1u1w) 4124 | -8/Materials | Core integrity fell below 50% 4372 | -8/Materials | Core integrity fell below 20% 4409 | -8/Materials | Released all parts (6) 4428 | -8/Materials | Destroyed by G-47 Trooper with Particle Gun Last Messages --------------- manual.) Slug penetrates Wall. Penetrated by Slug. Slug penetrates Wall. Penetrated by Slug. H-55 Commando destroyed. Acquired Lgt. Nuclear Core. Released Mak. System Shield. Released Lrg. Storage Unit. Released Mak. Hammer. Released Adv. Visual Processing Unit. Released Flail. Released Terrain Scan Processor. Acquired 3 matter. Acquired 17 matter. Slammed into K-01 Serf. K-01 Serf destroyed. Slammed into G-47 Trooper. Destabilizing: Core damaged (-27). Slammed into G-47 Trooper. Map ----- +----------------------------------------------------+ | ?????????????????????????????????????????????????? | | ?????????????????????????????????????????????????? | | ?????????????????????????????????????????????????? | | ?????????????????????????????????????????????????? | | ?????????????????????????????????????????????????? | | ?????????????????????????????????????????????????? | | ?????????????????????????????????????????????????? | | ?????????????????????????????????????????????????? | | ?????????????????????????????????????????????????? | | ?????????????????????????????????????????????????? | | ??????????????????????????? ?????????????????????? | | ?????????????????????????? #???????????????????? | | ?????????????????????????? #???????????????????? | | ?????????????????????????? #???????????????????? | | ?????????????????????????? #???????????????????? | | ??????????????????+??????? +???????????????????? | | ?????????????????????????? #???????????????????? | | ?????????????????????????? #???????????????????? | | ????????????????????????## ????????????????????? | | ????????????????????????# ????????????????????? | | ???????????????????????? ?????????????????????? | | ???????????????????????? T?????????????????????? | | ????????????????????????k ??????????????????????? | | ????????????????????????#g ??????????????????????? | | ????????????????????????#g#??????????????????????? | | ????????????????????????#@#??????????????????????? | | ????????????????????????#g#??????????????????????? | | ????????????????????????# #??????????????????????? | | ????????????????????????# #??????????????????????? | | ????????????????????????# #??????????????????????? | | ????????????????????????#%#??????????????????????? | | ????????????????????????#%#??????????????????????? | | ?????????????????????####=#??????????????????????? | | ?????????????????????# =#??????????????????????? | | ?????????????????????# #??????????????????????? | | ?????????????????##### #??????????????????????? | | ?????????????????# # #??????????????????????? | | ???????????????#?# # #??????????????????????? | | ???##########?##?# # !==###########????????????? | | ???#?#?##?##?###?# # !%= + #????????????? | | ?#????############ # !%## "" """ #????????????? | | ######## ## ]# ## "Y """ #????????????? | | ??#?##?# ## # % ## "" """ #????????????? | | ##?##### """ ###+## # #????????????? | | ##???### """ # # /! #????????????? | | ?#?##?## """ + + ! /= #????????????? | | ######?# """ # % # /! #????????????? | | #??##### ## % # = #????????????? | | ??###### ! ## #### ######????????????? | | ?#?##### ## % # ##?????????????? | +----------------------------------------------------+ Best States ------------- Heat Dissipation 31 Energy Generation 10 Energy Capacity 300 Matter Stores 300 Matter Capacity 300 Sight Range 20 Terrain Scan Range 14 Terrain Scan Density 135 Evasion (%) 50 Salvage Targeting 4 Defensive Hacking 11 Item Schematics ----------------- None Robot Schematics ------------------ None Fabricated ------------ Nothing Alien Tech Used ----------------- None Achievements -------------- A New Friend Challenges ------------ None Game ------ Seed MicroResetClaw Manual? 0 Play Time 00:28:12 Cumulative 16.2 hours Start 2024.04.08 @ 16:45:01 End 2024.04.08 @ 17:11:40 Sessions 1 Manual Loads 0 Difficulty Rogue Special Mode None Game No. 45 Rogue 45 Adventurer 0 Explorer 0 Win Type - Total 0 Types 0/0/0/0/0/0/0/0/0 Lore% 16 Gallery% 26 Achievement% 21 Wizard Run 0 Options --------- Layout 1 ASCII 0 Keyboard 0 Movement Arrows Keybinds 0 Fullscreen 2 Font 24/Smallcaps Map View 50x35 Zoom Use 0% Tactical HUD 0 Map Filters NONE Filters NONE Steam 1 RUN: 6ff0cdbb-03af-45f3-bb28-ba69d35d656f